[Event "RUS-chT Premier 2021"]
[White "Shubin,Kirill"]
[Black "Petrov,Nikita"]
[WhiteTeam "СШОР"]
[BlackTeam "Школа М. Ботвинника"]
[Site "Sochi"]
[Round "6.1"]
[Annotator "ChessBase"]
[Result "0-1"]
[Date "2021.05.07"]
[WhiteElo "2466"]
[BlackElo "2567"]
[PlyCount "62"]
[TimeControl "60"]

1. e4 {[%emt 0:0:0]} c5 {[%emt 0:0:0]} 2. Nf3 {[%emt 0:0:0]} Nc6 {[%emt 0:0:0]
} 3. Bb5 {[%emt 0:0:0]} e6 {[%emt 0:0:16]} 4. 0-0 {[%emt 0:0:0]} Nge7 {[%emt 0:0:11]} 5. b3 {[%emt 0:0:48]} a6 {[%emt 0:0:29]} 6. Bxc6 {[%emt 0:0:55]
} Nxc6 {[%emt 0:0:7]} 7. Bb2 {[%emt 0:0:8]} b5 {[%emt 0:0:0]} 8. a4 {[%emt 0:2:32]} b4 {[%emt 0:1:14]} 9. d3 {[%emt 0:0:13]} Bb7 {[%emt 0:0:29]
} 10. Nbd2 {[%emt 0:2:3]} f6 {[%emt 0:0:16]} 11. Nh4 {[%emt 0:0:0]} Qe7 {[%emt 0:0:7]} 12. Nc4 {[%emt 0:1:57]} 0-0-0 {[%emt 0:8:25]} 13. Re1 {[%emt 0:6:25]} Kb8 {[%emt 0:14:34]} 14. f4 {[%emt 0:4:50]} Qf7 {[%emt 0:6:51]
} 15. e5 {[%emt 0:2:58]} f5 {[%emt 0:15:25]} 16. Nf3 {[%emt 0:0:0]} h6 {[%emt 0:3:12]} 17. Nd6 {[%emt 0:0:23]} Bxd6 {[%emt 0:0:42]} 18. exd6 {[%emt 0:0:3]} Rhg8 {[%emt 0:0:39]} 19. Ne5 {[%emt 0:5:55]} Nxe5 {[%emt 0:1:24]
} 20. fxe5 {[%emt 0:0:13]} f4 {[%emt 0:6:54]} 21. Qd2 {[%emt 0:0:0]} g5 {[%emt 0:2:42]} 22. Rf1 {[%emt 0:2:47]} Rdf8 {[%emt 0:2:48]} 23. c3 {[%emt 0:1:29]} g4 {[%emt 0:6:37]} 24. g3 {[%emt 0:0:10]} bxc3 {[%emt 0:0:0]} 25. Bxc3 {[%emt 0:0:8]} Qg6 {[%emt 0:1:5]} 26. Rad1 {[%emt 0:8:29]
} fxg3 {[%emt 0:2:6]} 27. Rf6 {[%emt 0:0:3]} gxh2+ {[%emt 0:2:45]} 28. Qxh2 {[%emt 0:0:3]} g3 {[%emt 0:5:29]} 29. Qh3 {[%emt 0:0:9]} Qg5 {[%emt 0:3:1]
} 30. Re1 {[%emt 0:0:7]} Rxf6 {[%emt 0:5:6]} 31. exf6 {[%emt 0:0:6]
} Qf4 {[%emt 0:0:24]} 0-1

[Event "RUS-chT Premier 2021"]
[White "Zakhartsov,Vladimir"]
[Black "Lobanov,Sergei"]
[WhiteTeam "Школа М. Ботвинника"]
[BlackTeam "СШОР"]
[Site "Sochi"]
[Round "6.2"]
[Annotator "ChessBase"]
[Result "1/2-1/2"]
[Date "2021.05.07"]
[WhiteElo "2486"]
[BlackElo "2520"]
[PlyCount "93"]
[TimeControl "60"]

1. d4 {[%emt 0:0:0]} d5 {[%emt 0:0:0]} 2. c4 {[%emt 0:0:41]} dxc4 {[%emt 0:0:0]
} 3. e4 {[%emt 0:1:17]} Nf6 {[%emt 0:0:0]} 4. e5 {[%emt 0:0:0]} Nd5 {[%emt 0:0:0]} 5. Bxc4 {[%emt 0:0:10]} Nc6 {[%emt 0:0:15]} 6. Ne2 {[%emt 0:4:15]} Bf5 {[%emt 0:0:45]} 7. 0-0 {[%emt 0:3:6]} e6 {[%emt 0:0:0]} 8. Nbc3 {[%emt 0:1:48]} Nb6 {[%emt 0:0:9]} 9. Bb5 {[%emt 0:2:24]} Be7 {[%emt 0:22:8]} 10. Ng3 {[%emt 0:10:43]} Bg6 {[%emt 0:0:7]} 11. Be3 {[%emt 0:9:15]
} 0-0 {[%emt 0:1:31]} 12. Bxc6 {[%emt 0:4:44]} bxc6 {[%emt 0:0:0]} 13. Qe2 {[%emt 0:0:43]} Nd5 {[%emt 0:10:0]} 14. Rac1 {[%emt 0:3:39]} Nxc3 {[%emt 0:13:10]} 15. Rxc3 {[%emt 0:1:40]} Qd5 {[%emt 0:0:27]} 16. Rfc1 {[%emt 0:7:19]
} c5 {[%emt 0:7:6]} 17. Qc4 {[%emt 0:1:55]} Qxc4 {[%emt 0:0:0]} 18. Rxc4 {[%emt 0:0:1]} Bd3 {[%emt 0:0:2]} 19. Ra4 {[%emt 0:0:48]} c4 {[%emt 0:2:55]} 20. Nf1 {[%emt 0:2:21]} Rfb8 {[%emt 0:3:3]} 21. Nd2 {[%emt 0:1:7]
} Rxb2 {[%emt 0:1:29]} 22. Nxc4 {[%emt 0:0:29]} Rc2 {[%emt 0:0:0]} 23. Rxc2 {[%emt 0:2:40]} Bxc2 {[%emt 0:0:2]} 24. Ra6 {[%emt 0:0:6]
} Be4 {[%emt 0:1:6]} 25. Na5 {[%emt 0:2:27]} Kf8 {[%emt 0:6:44]} 26. Nc6 {[%emt 0:1:19]
} Ke8 {[%emt 0:0:44]} 27. Nxe7 {[%emt 0:4:8]} Kxe7 {[%emt 0:0:0]} 28. Bd2 {[%emt 0:1:0]} Kd7 {[%emt 0:4:40]} 29. f3 {[%emt 0:2:15]} Bb7 {[%emt 0:1:52]} 30. Ra5 {[%emt 0:1:5]} a6 {[%emt 0:0:4]} 31. Bb4 {[%emt 0:1:2]
} Bc6 {[%emt 0:0:9]} 32. a3 {[%emt 0:1:8]} Bb5 {[%emt 0:0:0]} 33. Kf2 {[%emt 0:0:39]} Rb8 {[%emt 0:2:3]} 34. g4 {[%emt 0:1:59]} h5 {[%emt 0:2:39]
} 35. Kg3 {[%emt 0:2:25]} Rh8 {[%emt 0:0:7]} 36. h4 {[%emt 0:0:0]} Rh7 {[%emt 0:0:29]} 37. Be1 {[%emt 0:3:49]} Rh8 {[%emt 0:0:27]} 38. Kf4 {[%emt 0:0:22]} Rh7 {[%emt 0:0:42]} 39. a4 {[%emt 0:3:0]} Bc4 {[%emt 0:0:0]} 40. Rc5 {[%emt 0:0:0]} Bd5 {[%emt 0:0:0]} 41. Rc1 {[%emt 0:5:9]} Bc6 {[%emt 0:2:1]} 42. a5 {[%emt 0:0:37]} Rh8 {[%emt 0:0:2]} 43. Rb1 {[%emt 0:0:34]
} Bd5 {[%emt 0:1:10]} 44. Rb2 {[%emt 0:0:34]} Ke7 {[%emt 0:0:0]} 45. Bb4+ {[%emt 0:0:36]} Kd7 {[%emt 0:0:1]} 46. Be1 {[%emt 0:0:33]} Ke7 {[%emt 0:0:44]} 47. Bb4+ {[%emt 0:0:6]} 1/2-1/2

[Event "RUS-chT Premier 2021"]
[White "Pershin,Denis"]
[Black "Makarian,Rudik"]
[WhiteTeam "СШОР"]
[BlackTeam "Школа М. Ботвинника"]
[Site "Sochi"]
[Round "6.3"]
[Annotator "ChessBase"]
[Result "1/2-1/2"]
[Date "2021.05.07"]
[WhiteElo "2391"]
[BlackElo "2468"]
[PlyCount "64"]
[TimeControl "60"]

1. d4 {[%emt 0:0:0]} Nf6 {[%emt 0:0:0]} 2. c4 {[%emt 0:0:0]} e6 {[%emt 0:0:0]} 3. Nc3 {[%emt 0:0:33]} Bb4 {[%emt 0:0:0]} 4. Qc2 {[%emt 0:0:23]} d5 {[%emt 0:0:0]} 5. cxd5 {[%emt 0:0:12]} exd5 {[%emt 0:0:0]} 6. Bg5 {[%emt 0:0:6]
} h6 {[%emt 0:0:0]} 7. Bh4 {[%emt 0:0:6]} Nc6 {[%emt 0:0:0]
} 8. e3 {[%emt 0:0:14]} g5 {[%emt 0:0:0]} 9. Bg3 {[%emt 0:0:4]} h5 {[%emt 0:0:3]
} 10. Bb5 {[%emt 0:0:8]} h4 {[%emt 0:0:10]} 11. Be5 {[%emt 0:0:0]} 0-0 {[%emt 0:0:16]} 12. h3 {[%emt 0:0:17]} Ne4 {[%emt 0:39:27]} 13. Bh2 {[%emt 0:0:10]} Bf5 {[%emt 0:18:51]} 14. Bd3 {[%emt 0:0:21]} Qf6 {[%emt 0:0:18]
} 15. Nf3 {[%emt 0:13:45]} Rfe8 {[%emt 0:0:46]} 16. Ne5 {[%emt 0:1:1]
} Nxe5 {[%emt 0:16:2]} 17. dxe5 {[%emt 0:6:15]} Bxc3+ {[%emt 0:0:0]} 18. bxc3 {[%emt 0:0:6]} Qg6 {[%emt 0:0:1]} 19. Rd1 {[%emt 0:4:51]} c5 {[%emt 0:1:13]} 20. Qb2 {[%emt 0:23:0]} c4 {[%emt 0:0:47]} 21. Bb1 {[%emt 0:11:21]
} Nc5 {[%emt 0:2:58]} 22. Rxd5 {[%emt 0:4:58]} Bxb1 {[%emt 0:0:0]} 23. Rxc5 {[%emt 0:0:2]} Bd3 {[%emt 0:0:5]} 24. f3 {[%emt 0:0:47]} Qb6 {[%emt 0:0:10]} 25. Qb5 {[%emt 0:1:5]} Rec8 {[%emt 0:1:21]} 26. Rxc8+ {[%emt 0:1:59]
} Rxc8 {[%emt 0:0:1]} 27. Qxb6 {[%emt 0:0:23]} axb6 {[%emt 0:0:0]} 28. Kd2 {[%emt 0:0:25]} Ra8 {[%emt 0:1:10]} 29. Ra1 {[%emt 0:0:7]} Ra5 {[%emt 0:0:25]} 30. Ke1 {[%emt 0:5:40]} Rb5 {[%emt 0:1:15]} 31. Rd1 {[%emt 0:0:7]
} Rb2 {[%emt 0:1:41]} 32. Rd2 {[%emt 0:0:5]} Rb1+ {[%emt 0:0:0]} 1/2-1/2

[Event "RUS-chT Premier 2021"]
[White "Afanasiev,Nikita"]
[Black "Askerov,Marat"]
[WhiteTeam "Школа М. Ботвинника"]
[BlackTeam "СШОР"]
[Site "Sochi"]
[Round "6.4"]
[Annotator "ChessBase"]
[Result "1-0"]
[Date "2021.05.07"]
[WhiteElo "2529"]
[BlackElo "2353"]
[PlyCount "79"]
[TimeControl "60"]

1. Nf3 {[%emt 0:0:0]} Nf6 {[%emt 0:0:0]} 2. c4 {[%emt 0:0:0]} c5 {[%emt 0:0:0]
} 3. g3 {[%emt 0:0:48]} d5 {[%emt 0:3:30]} 4. cxd5 {[%emt 0:0:0]} Nxd5 {[%emt 0:0:5]} 5. Nc3 {[%emt 0:0:4]} Nc6 {[%emt 0:2:17]} 6. Bg2 {[%emt 0:0:6]} Nc7 {[%emt 0:2:18]} 7. 0-0 {[%emt 0:1:5]} e5 {[%emt 0:0:0]} 8. a3 {[%emt 0:1:41]} Rb8 {[%emt 0:2:18]} 9. d3 {[%emt 0:8:51]} Be7 {[%emt 0:1:17]
} 10. Nd2 {[%emt 0:1:21]} Bd7 {[%emt 0:8:7]} 11. Nc4 {[%emt 0:0:0]} f6 {[%emt 0:3:48]} 12. a4 {[%emt 0:12:49]} Ne6 {[%emt 0:17:3]} 13. Nd5 {[%emt 0:10:34]} 0-0 {[%emt 0:0:53]} 14. Bd2 {[%emt 0:4:47]} Re8 {[%emt 0:3:35]
} 15. Bc3 {[%emt 0:6:58]} Bf8 {[%emt 0:2:54]} 16. e3 {[%emt 0:0:0]} Nb4 {[%emt 0:10:29]} 17. Bxb4 {[%emt 0:4:4]} cxb4 {[%emt 0:0:6]} 18. d4 {[%emt 0:0:5]} b5 {[%emt 0:6:32]} 19. axb5 {[%emt 0:4:32]} Bxb5 {[%emt 0:0:17]
} 20. b3 {[%emt 0:0:40]} exd4 {[%emt 0:3:12]} 21. exd4 {[%emt 0:0:7]
} a5 {[%emt 0:1:19]} 22. Qd3 {[%emt 0:7:41]} g6 {[%emt 0:10:40]
} 23. Rfe1 {[%emt 0:16:5]} Bg7 {[%emt 0:3:57]} 24. Re3 {[%emt 0:6:34]} f5 {[%emt 0:6:29]
} 25. Rae1 {[%emt 0:0:9]} Nxd4 {[%emt 0:0:57]} 26. Rxe8+ {[%emt 0:0:12]
} Bxe8 {[%emt 0:0:6]} 27. Ne5 {[%emt 0:0:24]} Ne6 {[%emt 0:0:0]} 28. Qa6 {[%emt 0:3:49]} Nc5 {[%emt 0:5:45]} 29. Qc4 {[%emt 0:0:13]} Ne6 {[%emt 0:1:5]} 30. Nf4 {[%emt 0:0:6]} Qc8 {[%emt 0:1:23]} 31. Qxc8 {[%emt 0:0:57]
} Rxc8 {[%emt 0:0:2]} 32. Bd5 {[%emt 0:0:5]} Rc5 {[%emt 0:0:0]} 33. Bxe6+ {[%emt 0:0:7]} Kh8 {[%emt 0:0:35]} 34. Nf7+ {[%emt 0:2:20]} Bxf7 {[%emt 0:0:2]} 35. Bxf7 {[%emt 0:0:4]} Bd4 {[%emt 0:0:33]} 36. Re8+ {[%emt 0:1:2]
} Kg7 {[%emt 0:0:6]} 37. Bc4 {[%emt 0:0:22]} Rxc4 {[%emt 0:0:0]} 38. bxc4 {[%emt 0:0:4]} b3 {[%emt 0:0:3]} 39. Rb8 {[%emt 0:0:7]} a4 {[%emt 0:0:9]} 40. Ne6+ {[%emt 0:0:0]} 1-0

[Event "RUS-chT Premier 2021"]
[White "Saveliev,Alexei"]
[Black "Kukhmazov,Arsen"]
[WhiteTeam "СШОР"]
[BlackTeam "Школа М. Ботвинника"]
[Site "Sochi"]
[Round "6.5"]
[Annotator "ChessBase"]
[Result "1/2-1/2"]
[Date "2021.05.07"]
[WhiteElo "2358"]
[BlackElo "2451"]
[PlyCount "83"]
[TimeControl "60"]

1. e4 {[%emt 0:0:0]} c6 {[%emt 0:0:0]} 2. d4 {[%emt 0:0:0]} d5 {[%emt 0:0:0]} 3. exd5 {[%emt 0:0:0]} cxd5 {[%emt 0:0:0]} 4. Bd3 {[%emt 0:0:0]} Nc6 {[%emt 0:0:0]} 5. c3 {[%emt 0:0:0]} Nf6 {[%emt 0:0:0]} 6. Bf4 {[%emt 0:1:0]
} Bg4 {[%emt 0:0:0]} 7. Qb3 {[%emt 0:0:5]} Qd7 {[%emt 0:0:0]} 8. Nd2 {[%emt 0:1:59]} e6 {[%emt 0:0:0]} 9. Ngf3 {[%emt 0:2:52]} Bd6 {[%emt 0:0:15]
} 10. Bxd6 {[%emt 0:7:42]} Qxd6 {[%emt 0:0:8]} 11. 0-0 {[%emt 0:0:16]
} 0-0 {[%emt 0:0:4]} 12. Rae1 {[%emt 0:6:46]} Ne7 {[%emt 0:0:0]} 13. Ne5 {[%emt 0:4:26]} Bf5 {[%emt 0:0:24]} 14. a3 {[%emt 0:5:51]} b5 {[%emt 0:3:7]
} 15. Bxf5 {[%emt 0:4:34]} Nxf5 {[%emt 0:0:10]} 16. Nd3 {[%emt 0:0:8]
} Rab8 {[%emt 0:2:33]} 17. Qd1 {[%emt 0:4:44]} Qd8 {[%emt 0:0:0]} 18. Nf3 {[%emt 0:7:9]} Nd6 {[%emt 0:10:34]} 19. Nfe5 {[%emt 0:4:35]} Rb6 {[%emt 0:1:58]} 20. Nc5 {[%emt 0:2:7]} Qc7 {[%emt 0:11:37]} 21. Qe2 {[%emt 0:1:56]
} Nde4 {[%emt 0:12:49]} 22. Ned3 {[%emt 0:3:4]} a5 {[%emt 0:0:0]} 23. Ra1 {[%emt 0:11:43]} Nd6 {[%emt 0:27:20]} 24. Rfc1 {[%emt 0:2:39]} a4 {[%emt 0:2:0]} 25. Rf1 {[%emt 0:2:6]} Nc4 {[%emt 0:0:23]} 26. Rae1 {[%emt 0:0:24]
} Ne4 {[%emt 0:7:32]} 27. Nxe4 {[%emt 0:4:0]} dxe4 {[%emt 0:0:0]} 28. Ne5 {[%emt 0:0:8]} Nxe5 {[%emt 0:4:7]} 29. dxe5 {[%emt 0:0:5]
} Qxe5 {[%emt 0:0:3]} 30. Qxe4 {[%emt 0:0:4]} Qxe4 {[%emt 0:0:21]} 31. Rxe4 {[%emt 0:0:1]} Rd6 {[%emt 0:1:14]} 32. Rb4 {[%emt 0:6:40]} Rd5 {[%emt 0:0:10]
} 33. c4 {[%emt 0:15:50]} bxc4 {[%emt 0:0:4]} 34. Rxc4 {[%emt 0:0:2]
} Rd2 {[%emt 0:0:59]} 35. Rb1 {[%emt 0:1:36]} Ra8 {[%emt 0:0:0]} 36. Kf1 {[%emt 0:0:28]} g5 {[%emt 0:0:26]} 37. Ke1 {[%emt 0:1:36]} Rd5 {[%emt 0:0:19]} 38. Rd1 {[%emt 0:0:56]} Re5+ {[%emt 0:0:24]} 39. Kd2 {[%emt 0:1:17]
} Rb8 {[%emt 0:0:59]} 40. Kc1 {[%emt 0:0:0]} Re2 {[%emt 0:0:0]} 41. Rc2 {[%emt 0:1:59]} Re4 {[%emt 0:1:33]} 42. Rdd2 {[%emt 0:2:56]} 1/2-1/2

[Event "RUS-chT Premier 2021"]
[White "Vetokhin,Savva"]
[Black "Timerkhanov,Alexander"]
[WhiteTeam "Школа М. Ботвинника"]
[BlackTeam "СШОР"]
[Site "Sochi"]
[Round "6.6"]
[Annotator "NA"]
[Result "1/2-1/2"]
[Date "2021.05.07"]
[WhiteElo "2261"]
[BlackElo "2400"]
[PlyCount "114"]
[TimeControl "60"]

1. Nf3 {[%emt 0:0:0]} d5 {[%emt 0:0:39]} 2. g3 {[%emt 0:0:0]} Bg4 {[%emt 0:0:18]
} 3. Bg2 {[%emt 0:0:0]} Nd7 {[%emt 0:0:7]} 4. c4 {[%emt 0:0:0]} e6 {[%emt 0:2:58]} 5. Qb3 {[%emt 0:6:33]} Nc5 {[%emt 0:2:15]} 6. Qe3 {[%emt 0:0:19]
} Nf6 {[%emt 0:3:22]} 7. d4 {[%emt 0:1:28]} Bxf3 {[%emt 0:0:0]} 8. Bxf3 {[%emt 0:6:25]} Nce4 {[%emt 0:0:43]} 9. cxd5 {[%emt 0:1:18]} exd5 {[%emt 0:0:10]} 10. Nc3 {[%emt 0:0:28]} Bb4 {[%emt 0:0:55]} 11. 0-0 {[%emt 0:5:46]
} Bxc3 {[%emt 0:4:0]} 12. bxc3 {[%emt 0:2:13]} 0-0 {[%emt 0:0:0]} 13. Qd3 {[%emt 0:1:21]} Nd6 {[%emt 0:10:23]} 14. Bg2 {[%emt 0:1:13]} Re8 {[%emt 0:1:5]} 15. Re1 {[%emt 0:0:19]} Qd7 {[%emt 0:7:25]} 16. f3 {[%emt 0:3:2]
} Qb5 {[%emt 0:2:49]} 17. Qxb5 {[%emt 0:2:35]} Nxb5 {[%emt 0:0:0]} 18. Bd2 {[%emt 0:2:8]} Nd6 {[%emt 0:0:32]} 19. g4 {[%emt 0:1:17]} h6 {[%emt 0:0:25]} 20. g5 {[%emt 0:4:42]} Nc4 {[%emt 0:7:53]} 21. gxf6 {[%emt 0:10:10]
} Nxd2 {[%emt 0:0:21]} 22. e4 {[%emt 0:0:26]} dxe4 {[%emt 0:0:0]} 23. fxe4 {[%emt 0:0:2]} gxf6 {[%emt 0:0:9]} 24. Re2 {[%emt 0:1:42]} Nc4 {[%emt 0:0:5]} 25. Rf1 {[%emt 0:0:13]} Kg7 {[%emt 0:4:37]} 26. e5 {[%emt 0:1:43]
} fxe5 {[%emt 0:3:18]} 27. Bd5 {[%emt 0:0:45]} Nd6 {[%emt 0:0:0]} 28. dxe5 {[%emt 0:0:29]} Kh8 {[%emt 0:1:58]} 29. Rf6 {[%emt 0:2:22]} Rg8+ {[%emt 0:3:12]} 30. Kf1 {[%emt 0:0:51]} Nb5 {[%emt 0:1:43]} 31. Rxh6+ {[%emt 0:1:15]
} Kg7 {[%emt 0:0:14]} 32. Rf6 {[%emt 0:0:9]} Nxc3 {[%emt 0:0:0]} 33. Rxf7+ {[%emt 0:1:23]} Kh6 {[%emt 0:1:29]} 34. Rf6+ {[%emt 0:3:30]} Rg6 {[%emt 0:0:14]} 35. Bxb7 {[%emt 0:6:49]} Rxf6+ {[%emt 0:0:56]} 36. exf6 {[%emt 0:0:9]} Rf8 {[%emt 0:0:9]} 37. Re6 {[%emt 0:6:40]} Kg5 {[%emt 0:0:0]} 38. Re5+ {[%emt 0:0:47]} Kg6 {[%emt 0:0:31]} 39. Rc5 {[%emt 0:0:15]} Rxf6+ {[%emt 0:0:13]} 40. Kg2 {[%emt 0:0:0]} Nxa2 {[%emt 0:0:0]} 41. Be4+ {[%emt 0:0:9]} Kg7 {[%emt 0:1:22]} 42. Rxc7+ {[%emt 0:0:8]} Rf7 {[%emt 0:0:0]} 43. Rc4 {[%emt 0:0:1]} a5 {[%emt 0:0:57]} 44. Kg3 {[%emt 0:1:29]} Nb4 {[%emt 0:0:13]} 45. h4 {[%emt 0:0:10]} Rd7 {[%emt 0:0:41]} 46. Rc5 {[%emt 0:1:53]
} a4 {[%emt 0:0:43]} 47. Rc4 {[%emt 0:0:45]} Nd5 {[%emt 0:0:0]} 48. Bf3 {[%emt 0:1:42]} Ne3 {[%emt 0:3:54]} 49. Rxa4 {[%emt 0:0:38]} Nf5+ {[%emt 0:0:6]} 50. Kh3 {[%emt 0:0:14]} Rd4 {[%emt 0:0:6]} 51. Ra7+ {[%emt 0:0:4]
} Kf6 {[%emt 0:0:9]} 52. Ra6+ {[%emt 0:0:50]} Ke5 {[%emt 0:0:0]} 53. h5 {[%emt 0:1:0]} Kf4 {[%emt 0:0:7]} 54. Be2 {[%emt 0:1:1]} Re4 {[%emt 0:0:20]} 55. Ra2 {[%emt 0:0:28]} Kg5 {[%emt 0:1:42]} 56. Kg2 {[%emt 0:0:43]
} Re5 {[%emt 0:0:14]} 57. Kf2 {[%emt 0:0:30]} Ng7 {[%emt 0:0:0]} 1/2-1/2

[Event "RUS-chT Premier 2021"]
[White "Oparin,Grigoriy"]
[Black "Dreev,Aleksey"]
[WhiteTeam "Ладья"]
[BlackTeam "КПРФ"]
[Site "Sochi"]
[Round "6.14"]
[Annotator "RC"]
[Result "1/2-1/2"]
[Date "2021.05.07"]
[WhiteElo "2652"]
[BlackElo "2647"]
[PlyCount "61"]
[TimeControl "60"]

1. Nf3 {[%emt 0:0:0]} d5 {[%emt 0:0:8]} 2. c4 {[%emt 0:0:0]} e6 {[%emt 0:0:0]} 3. g3 {[%emt 0:0:6]} a6 {[%emt 0:6:0]} 4. b3 {[%emt 0:3:30]} dxc4 {[%emt 0:10:18]} 5. bxc4 {[%emt 0:0:6]} b5 {[%emt 0:0:3]} 6. Qb3 {[%emt 0:0:0]} b4 {[%emt 0:8:26]} 7. a3 {[%emt 0:3:54]} c5 {[%emt 0:2:49]} 8. d4 {[%emt 0:19:21]
} a5 {[%emt 0:23:25]} 9. axb4 {[%emt 0:7:17]} cxb4 {[%emt 0:0:0]} 10. Bg2 {[%emt 0:0:4]} Bb7 {[%emt 0:0:11]} 11. Nc3 {[%emt 0:0:32]} Nf6 {[%emt 0:5:17]} 12. Nb5 {[%emt 0:1:8]} Be7 {[%emt 0:3:13]} 13. Bf4 {[%emt 0:1:15]
} 0-0 {[%emt 0:0:50]} 14. 0-0 {[%emt 0:7:15]} Nc6 {[%emt 0:0:0]} 15. Rfd1 {[%emt 0:3:28]} Na7 {[%emt 0:5:51]} 16. Nc7 {[%emt 0:23:52]} Rc8 {[%emt 0:1:14]} 17. d5 {[%emt 0:0:4]} Rxc7 {[%emt 0:13:27]} 18. dxe6 {[%emt 0:0:35]
} Qc8 {[%emt 0:0:57]} 19. Rxa5 {[%emt 0:2:1]} Nc6 {[%emt 0:0:0]} 20. Rb5 {[%emt 0:0:56]} fxe6 {[%emt 0:3:31]} 21. Bxc7 {[%emt 0:1:47]} Qxc7 {[%emt 0:0:2]} 22. Ng5 {[%emt 0:1:32]} Bc8 {[%emt 0:2:0]} 23. c5 {[%emt 0:2:0]
} Qe5 {[%emt 0:3:39]} 24. Bxc6 {[%emt 0:0:11]} Qxg5 {[%emt 0:0:0]} 25. Qxb4 {[%emt 0:0:10]} Ba6 {[%emt 0:2:33]} 26. Rb8 {[%emt 0:3:48]} Qxc5 {[%emt 0:1:8]} 27. Rxf8+ {[%emt 0:0:23]} Bxf8 {[%emt 0:0:55]} 28. Qxc5 {[%emt 0:2:6]} Bxc5 {[%emt 0:0:2]} 29. Kf1 {[%emt 0:0:14]} Be7 {[%emt 0:0:0]} 30. Rd4 {[%emt 0:1:39]} Kf7 {[%emt 0:0:50]} 31. Ra4 {[%emt 0:0:8]} 1/2-1/2

[Event "RUS-chT Premier 2021"]
[White "Faizrakhmanov,Ramil"]
[Black "Sychev,Klementy"]
[WhiteTeam "Ладья"]
[BlackTeam "КПРФ"]
[Site "Sochi"]
[Round "6.18"]
[Annotator "ChessBase"]
[Result "1/2-1/2"]
[Date "2021.05.07"]
[WhiteElo "2477"]
[BlackElo "2572"]
[PlyCount "49"]
[TimeControl "60"]

1. d4 {[%emt 0:0:0]} Nf6 {[%emt 0:0:17]} 2. c4 {[%emt 0:0:3]} g6 {[%emt 0:0:0]} 3. Nc3 {[%emt 0:0:38]} d5 {[%emt 0:1:20]} 4. cxd5 {[%emt 0:1:37]} Nxd5 {[%emt 0:0:29]} 5. e4 {[%emt 0:1:15]} Nxc3 {[%emt 0:0:6]} 6. bxc3 {[%emt 0:0:5]
} Bg7 {[%emt 0:0:3]} 7. Nf3 {[%emt 0:0:48]} c5 {[%emt 0:0:23]
} 8. Bb5+ {[%emt 0:1:31]} Nc6 {[%emt 0:0:18]} 9. d5 {[%emt 0:6:2]} Qa5 {[%emt 0:1:52]
} 10. Rb1 {[%emt 0:1:41]} Bxc3+ {[%emt 0:0:4]} 11. Bd2 {[%emt 0:1:5]
} a6 {[%emt 0:0:18]} 12. Bxc6+ {[%emt 0:2:4]} bxc6 {[%emt 0:0:0]} 13. dxc6 {[%emt 0:1:0]} Be6 {[%emt 0:0:8]} 14. Rc1 {[%emt 0:5:0]} Bb4 {[%emt 0:0:4]} 15. 0-0 {[%emt 0:1:49]} Bxd2 {[%emt 0:0:21]} 16. Qxd2 {[%emt 0:1:24]
} Qxd2 {[%emt 0:0:4]} 17. Nxd2 {[%emt 0:0:6]} 0-0-0 {[%emt 0:0:0]} 18. Nb3 {[%emt 0:1:55]} Bxb3 {[%emt 0:0:3]} 19. axb3 {[%emt 0:0:6]
} Rd6 {[%emt 0:0:3]} 20. Rxc5 {[%emt 0:0:59]} Kc7 {[%emt 0:0:1]} 21. Ra1 {[%emt 0:2:48]
} Rb8 {[%emt 0:0:4]} 22. e5 {[%emt 0:3:33]} Rxc6 {[%emt 0:0:0]} 23. Rxc6+ {[%emt 0:0:29]} Kxc6 {[%emt 0:0:2]} 24. Rxa6+ {[%emt 0:0:14]
} Kd5 {[%emt 0:0:57]} 25. f4 1/2-1/2

[Event "RUS-chT Premier 2021"]
[White "Demidov,Mikhail"]
[Black "Goganov,Aleksey"]
[WhiteTeam "Гоголевский, 14"]
[BlackTeam "Медный всадник"]
[Site "Sochi"]
[Round "6.24"]
[Annotator "ChessBase"]
[Result "0-1"]
[Date "2021.05.07"]
[WhiteElo "2523"]
[BlackElo "2575"]
[PlyCount "142"]
[TimeControl "60"]

1. Nf3 {[%emt 0:0:0]} d5 {[%emt 0:0:0]} 2. g3 {[%emt 0:0:0]} g6 {[%emt 0:0:0]} 3. Bg2 {[%emt 0:0:0]} Bg7 {[%emt 0:0:0]} 4. d4 {[%emt 0:4:36]} Nf6 {[%emt 0:0:1]} 5. c4 {[%emt 0:2:32]} c6 {[%emt 0:3:25]} 6. 0-0 {[%emt 0:0:0]} 0-0 {[%emt 0:0:7]} 7. Qb3 {[%emt 0:3:43]} Qb6 {[%emt 0:0:33]} 8. Nc3 {[%emt 0:2:4]
} Rd8 {[%emt 0:5:42]} 9. c5 {[%emt 0:3:38]} Qxb3 {[%emt 0:0:0]} 10. axb3 {[%emt 0:0:2]} Na6 {[%emt 0:0:26]} 11. h3 {[%emt 0:6:32]} Nd7 {[%emt 0:5:12]} 12. Bg5 {[%emt 0:17:4]} f6 {[%emt 0:3:39]} 13. Bd2 {[%emt 0:0:0]} e5 {[%emt 0:5:1]} 14. e3 {[%emt 0:22:33]} e4 {[%emt 0:18:36]} 15. Ne1 {[%emt 0:0:21]} f5 {[%emt 0:0:50]} 16. Nc2 {[%emt 0:0:43]} Nc7 {[%emt 0:0:0]} 17. Ra2 {[%emt 0:3:54]} Rf8 {[%emt 0:6:6]} 18. b4 {[%emt 0:3:6]} a6 {[%emt 0:4:48]
} 19. Na1 {[%emt 0:1:38]} Rb8 {[%emt 0:0:42]} 20. Nb3 {[%emt 0:0:0]} Ne6 {[%emt 0:2:42]} 21. Rfa1 {[%emt 0:2:12]} g5 {[%emt 0:2:42]} 22. Rf1 {[%emt 0:1:0]} Bf6 {[%emt 0:5:34]} 23. f3 {[%emt 0:1:4]} Bd8 {[%emt 0:0:0]} 24. fxe4 {[%emt 0:6:25]} fxe4 {[%emt 0:0:32]} 25. Ne2 {[%emt 0:0:42]
} Bc7 {[%emt 0:0:31]} 26. Raa1 {[%emt 0:0:29]} Nf6 {[%emt 0:0:42]} 27. Rf2 {[%emt 0:2:19]
} Bd7 {[%emt 0:2:4]} 28. Na5 {[%emt 0:0:22]} Kg7 {[%emt 0:0:0]} 29. Raf1 {[%emt 0:0:22]} h5 {[%emt 0:1:57]} 30. Rf5 {[%emt 0:5:6]} Kg6 {[%emt 0:2:10]} 31. h4 {[%emt 0:1:1]} Bxa5 {[%emt 0:14:29]} 32. bxa5 {[%emt 0:0:22]
} Ng4 {[%emt 0:0:10]} 33. Rxf8 {[%emt 0:0:41]} Rxf8 {[%emt 0:0:0]} 34. Rxf8 {[%emt 0:3:40]} Nxf8 {[%emt 0:0:4]} 35. hxg5 {[%emt 0:0:0]} Kxg5 {[%emt 0:0:15]} 36. Nf4 {[%emt 0:1:14]} Nh6 {[%emt 0:1:9]} 37. Be1 {[%emt 0:1:32]} Bg4 {[%emt 0:0:46]} 38. Bf2 {[%emt 0:0:28]} Nf5 {[%emt 0:0:8]
} 39. Kf1 {[%emt 0:0:43]} Kf6 {[%emt 0:0:23]} 40. Ke1 {[%emt 0:0:0]} Nh7 {[%emt 0:0:0]} 41. b4 {[%emt 0:1:1]} Ng5 {[%emt 0:1:3]} 42. Kd2 {[%emt 0:2:2]} Ne6 {[%emt 0:9:2]} 43. Ne2 {[%emt 0:7:53]} Ng5 {[%emt 0:3:39]
} 44. Nf4 {[%emt 0:0:8]} Ng7 {[%emt 0:0:33]} 45. Bf1 {[%emt 0:0:0]} N7e6 {[%emt 0:0:17]} 46. Bg2 {[%emt 0:8:58]} Nxf4 {[%emt 0:0:57]} 47. exf4 {[%emt 0:3:59]} Ne6 {[%emt 0:1:14]} 48. Be3 {[%emt 0:2:42]} Ng7 {[%emt 0:5:47]
} 49. Ke1 {[%emt 0:0:22]} Nf5 {[%emt 0:0:15]} 50. Kf2 {[%emt 0:0:0]} Kf7 {[%emt 0:3:43]} 51. Bf1 {[%emt 0:0:10]} Kg6 {[%emt 0:0:18]} 52. Bg2 {[%emt 0:2:12]} h4 {[%emt 0:1:45]} 53. gxh4 {[%emt 0:0:4]} Kh5 {[%emt 0:0:10]
} 54. Bf1 {[%emt 0:5:3]} Kxh4 {[%emt 0:0:15]} 55. Bg2 {[%emt 0:0:5]
} Bh3 {[%emt 0:0:51]} 56. Bh1 {[%emt 0:0:5]} Kg4 {[%emt 0:0:0]} 57. b5 {[%emt 0:2:20]} cxb5 {[%emt 0:0:31]} 58. Bxe4 {[%emt 0:0:7]} dxe4 {[%emt 0:1:12]} 59. d5 {[%emt 0:0:1]} b4 {[%emt 0:2:30]} 60. d6 {[%emt 0:1:0]
} Ng7 {[%emt 0:0:20]} 61. d7 {[%emt 0:0:37]} Ne6 {[%emt 0:0:0]} 62. Ke2 {[%emt 0:1:29]} Kf5 {[%emt 0:0:27]} 63. c6 {[%emt 0:0:15]} bxc6 {[%emt 0:0:4]} 64. Bb6 {[%emt 0:0:3]} Kf6 {[%emt 0:2:19]} 65. d8=Q+ {[%emt 0:0:21]
} Nxd8 {[%emt 0:0:3]} 66. Bxd8+ {[%emt 0:0:7]} Ke6 {[%emt 0:0:0]} 67. Ke3 {[%emt 0:0:35]} Kd5 {[%emt 0:0:7]} 68. Be7 {[%emt 0:0:7]} c5 {[%emt 0:0:6]} 69. Bf8 {[%emt 0:0:3]} Bf5 {[%emt 0:0:5]} 70. Be7 {[%emt 0:0:4]
} Kc4 {[%emt 0:0:13]} 71. Kd2 {[%emt 0:0:9]} Kb5 {[%emt 0:0:0]} 0-1